[Event "*** Titled Tuesday Blitz"]
[Site "Chess.com"]
[Date "2019.06.04"]
[Round "2"]
[White "Satscho"]
[Black "el-reptiliano"]
[Result "0-1"]
[WhiteElo "2249"]
[BlackElo "2188"]
[TimeControl "180+2"]
[EndTime "13:23:46 PDT"]
[Termination "el-reptiliano won by resignation"]

1. e4 {[%clk 0:03:01.9]} 1... c5 {[%clk 0:03:00.8]} 2. Nf3 {[%clk 0:02:59.9]}
2... e6 {[%clk 0:03:01.2]} 3. d4 {[%clk 0:03:00.6]} 3... cxd4 {[%clk 0:03:03.1]}
4. Nxd4 {[%clk 0:03:02.3]} 4... Nc6 {[%clk 0:03:03.8]} 5. Nc3 {[%clk 0:03:01.9]}
5... Qc7 {[%clk 0:03:05.1]} 6. Be3 {[%clk 0:03:02.8]} 6... a6 {[%clk 0:03:02]}
7. Qf3 {[%clk 0:03:03.7]} 7... Nf6 {[%clk 0:02:56.6]} 8. Qg3 {[%clk 0:02:55.8]}
8... d6 {[%clk 0:02:46.8]} 9. O-O-O {[%clk 0:02:55.7]} 9... h5 {[%clk
0:02:47.2]} 10. f4 {[%clk 0:02:53.6]} 10... h4 {[%clk 0:02:44.3]} 11. Qf3 {[%clk
0:02:53.8]} 11... e5 {[%clk 0:02:30.1]} 12. Nxc6 {[%clk 0:02:43.4]} 12... Bg4
{[%clk 0:02:29.6]} 13. Qf2 {[%clk 0:02:19]} 13... Bxd1 {[%clk 0:02:16.9]} 14.
Nxe5 {[%clk 0:01:44.4]} 14... dxe5 {[%clk 0:02:10.5]} 15. Nxd1 {[%clk
0:01:26.2]} 15... Ng4 {[%clk 0:02:01.6]} 16. Qf3 {[%clk 0:01:27.3]} 16... Nxe3
{[%clk 0:02:02.1]} 17. Nxe3 {[%clk 0:01:29.2]} 17... Rc8 {[%clk 0:01:51.9]} 18.
Bd3 {[%clk 0:01:29]} 18... exf4 {[%clk 0:01:43.6]} 19. Nd5 {[%clk 0:01:29]}
19... Qe5 {[%clk 0:01:41.2]} 20. Rf1 {[%clk 0:01:25.3]} 20... Bc5 {[%clk
0:01:16.1]} 21. Nxf4 {[%clk 0:01:23.2]} 21... Bd4 {[%clk 0:01:00.2]} 22. Ng6
{[%clk 0:00:46.7]} 22... Qg5+ {[%clk 0:00:53.4]} 23. Nf4 {[%clk 0:00:47.7]}
23... Be5 {[%clk 0:00:34.6]} 24. g3 {[%clk 0:00:48.6]} 24... hxg3 {[%clk
0:00:32.9]} 25. hxg3 {[%clk 0:00:50.5]} 25... Rh2 {[%clk 0:00:21.6]} 26. Kb1
{[%clk 0:00:48.7]} 26... Bxf4 {[%clk 0:00:22.3]} 27. gxf4 {[%clk 0:00:50.6]}
27... Qg2 {[%clk 0:00:22.4]} 28. Qd1 {[%clk 0:00:45.1]} 28... Qd2 {[%clk
0:00:19.7]} 29. Qxd2 {[%clk 0:00:23.3]} 29... Rxd2 {[%clk 0:00:21.6]} 30. e5
{[%clk 0:00:24.4]} 30... g6 {[%clk 0:00:21.5]} 31. f5 {[%clk 0:00:24.2]} 31...
gxf5 {[%clk 0:00:21.5]} 32. Bxf5 {[%clk 0:00:25.7]} 32... Rcd8 {[%clk
0:00:22.5]} 33. Kc1 {[%clk 0:00:26.2]} 33... Re2 {[%clk 0:00:21.7]} 34. e6
{[%clk 0:00:25.5]} 34... fxe6 {[%clk 0:00:21.6]} 35. Bg6+ {[%clk 0:00:27.2]}
35... Ke7 {[%clk 0:00:22.5]} 36. Rf7+ {[%clk 0:00:27.3]} 36... Kd6 {[%clk
0:00:23.9]} 37. Rxb7 {[%clk 0:00:28.9]} 37... Kc6 {[%clk 0:00:20.3]} 38. Bd3
{[%clk 0:00:12.7]} 38... Rxd3 {[%clk 0:00:21]} 39. cxd3 {[%clk 0:00:13.2]} 39...
Kxb7 {[%clk 0:00:22.2]} 0-1

[Event "*** Titled Tuesday Blitz"]
[Site "Chess.com"]
[Date "2019.06.04"]
[Round "2"]
[White "ZenBull"]
[Black "armago"]
[Result "0-1"]
[WhiteElo "2094"]
[BlackElo "2069"]
[TimeControl "180+2"]
[EndTime "13:23:47 PDT"]
[Termination "armago won by checkmate"]

1. Nf3 {[%clk 0:03:00]} 1... Nf6 {[%clk 0:02:58.9]} 2. b3 {[%clk 0:03:00.9]}
2... g6 {[%clk 0:02:59.5]} 3. Bb2 {[%clk 0:03:02.3]} 3... Bg7 {[%clk 0:03:01.4]}
4. e3 {[%clk 0:03:00.7]} 4... O-O {[%clk 0:03:02]} 5. Be2 {[%clk 0:03:02.1]}
5... d5 {[%clk 0:03:03.1]} 6. O-O {[%clk 0:03:03]} 6... c5 {[%clk 0:03:04]} 7.
d4 {[%clk 0:03:02.8]} 7... Ne4 {[%clk 0:03:03.7]} 8. Nbd2 {[%clk 0:03:01.6]}
8... Nc6 {[%clk 0:03:03.3]} 9. Rb1 {[%clk 0:03:00.1]} 9... cxd4 {[%clk
0:02:56.7]} 10. Nxd4 {[%clk 0:02:56.5]} 10... Nxd4 {[%clk 0:02:53.6]} 11. exd4
{[%clk 0:02:54.9]} 11... Bf5 {[%clk 0:02:47]} 12. Bd3 {[%clk 0:02:40.3]} 12...
Rc8 {[%clk 0:02:41.4]} 13. Bxe4 {[%clk 0:02:32.3]} 13... dxe4 {[%clk 0:02:40.6]}
14. Nc4 {[%clk 0:02:28.2]} 14... Qc7 {[%clk 0:02:24.7]} 15. Ne3 {[%clk
0:02:23.7]} 15... Bd7 {[%clk 0:02:18.2]} 16. c4 {[%clk 0:02:22.8]} 16... Rfd8
{[%clk 0:02:13.9]} 17. Qe2 {[%clk 0:02:16.3]} 17... e6 {[%clk 0:02:05]} 18. d5
{[%clk 0:02:12.1]} 18... e5 {[%clk 0:01:59.8]} 19. Rfd1 {[%clk 0:01:56.7]} 19...
f5 {[%clk 0:01:56.8]} 20. Rbc1 {[%clk 0:01:55]} 20... b6 {[%clk 0:01:50.7]} 21.
b4 {[%clk 0:01:53.6]} 21... Ba4 {[%clk 0:01:49.4]} 22. Re1 {[%clk 0:01:41.5]}
22... Qd7 {[%clk 0:01:26.8]} 23. g3 {[%clk 0:01:16.1]} 23... h5 {[%clk
0:01:20.1]} 24. Ba1 {[%clk 0:01:00.8]} 24... h4 {[%clk 0:01:16.3]} 25. Ng2
{[%clk 0:00:57.6]} 25... hxg3 {[%clk 0:01:09.9]} 26. hxg3 {[%clk 0:00:58.4]}
26... b5 {[%clk 0:01:04.8]} 27. cxb5 {[%clk 0:00:52.7]} 27... Bxb5 {[%clk
0:01:03.2]} 28. Qd2 {[%clk 0:00:48.9]} 28... Rxc1 {[%clk 0:00:57.3]} 29. Rxc1
{[%clk 0:00:48.1]} 29... Qxd5 {[%clk 0:00:56.8]} 30. Qxd5+ {[%clk 0:00:33.8]}
30... Rxd5 {[%clk 0:00:58.6]} 31. Bc3 {[%clk 0:00:31]} 31... Bh6 {[%clk
0:00:55.5]} 32. Ne3 {[%clk 0:00:29.8]} 32... Rd3 {[%clk 0:00:55.8]} 33. Bxe5
{[%clk 0:00:27.9]} 33... Bxe3 {[%clk 0:00:50.9]} 34. fxe3 {[%clk 0:00:29.8]}
34... Rxe3 {[%clk 0:00:52.4]} 35. Rc8+ {[%clk 0:00:25]} 35... Kf7 {[%clk
0:00:52.3]} 36. Rc7+ {[%clk 0:00:25.7]} 36... Ke6 {[%clk 0:00:53.4]} 37. Bf4
{[%clk 0:00:24.5]} 37... Re2 {[%clk 0:00:53.5]} 38. Rxa7 {[%clk 0:00:24.1]}
38... Bd3 {[%clk 0:00:52.7]} 39. a4 {[%clk 0:00:23.6]} 39... e3 {[%clk
0:00:51.5]} 40. b5 {[%clk 0:00:23.6]} 40... Kd5 {[%clk 0:00:51.7]} 41. Re7
{[%clk 0:00:23.2]} 41... Be4 {[%clk 0:00:51.2]} 42. b6 {[%clk 0:00:23.3]} 42...
Re1+ {[%clk 0:00:51.8]} 43. Kh2 {[%clk 0:00:21.9]} 43... Rh1# {[%clk 0:00:53.1]}
0-1

[Event "*** Titled Tuesday Blitz"]
[Site "Chess.com"]
[Date "2019.06.04"]
[Round "2"]
[White "Simoncelli15"]
[Black "King_of_the_wing"]
[Result "0-1"]
[WhiteElo "2256"]
[BlackElo "2186"]
[TimeControl "180+2"]
[EndTime "13:23:52 PDT"]
[Termination "King_of_the_wing won by checkmate"]

1. e4 {[%clk 0:03:01.9]} 1... e6 {[%clk 0:02:59.3]} 2. d4 {[%clk 0:03:02]} 2...
d5 {[%clk 0:03:00.6]} 3. c3 {[%clk 0:03:03.5]} 3... dxe4 {[%clk 0:03:00.6]} 4.
Nd2 {[%clk 0:03:04]} 4... f5 {[%clk 0:03:01.1]} 5. f3 {[%clk 0:02:56.3]} 5...
exf3 {[%clk 0:03:01.6]} 6. Ngxf3 {[%clk 0:02:56.9]} 6... Nf6 {[%clk 0:03:03.3]}
7. Bc4 {[%clk 0:02:57.6]} 7... Bd6 {[%clk 0:03:03.7]} 8. O-O {[%clk 0:02:58.5]}
8... O-O {[%clk 0:03:04.9]} 9. Re1 {[%clk 0:02:58.5]} 9... Re8 {[%clk 0:02:50]}
10. Ng5 {[%clk 0:02:42.8]} 10... Nd5 {[%clk 0:02:51.1]} 11. Qh5 {[%clk
0:02:20.9]} 11... h6 {[%clk 0:02:38.2]} 12. Nxe6 {[%clk 0:02:03.4]} 12... Bxe6
{[%clk 0:02:34.2]} 13. Bxd5 {[%clk 0:02:03.1]} 13... Qd7 {[%clk 0:01:53.6]} 14.
Nf3 {[%clk 0:01:40]} 14... Nc6 {[%clk 0:01:50.6]} 15. Qxf5 {[%clk 0:01:33.4]}
15... Bxh2+ {[%clk 0:01:38.7]} 16. Kxh2 {[%clk 0:01:19.5]} 16... Qxd5 {[%clk
0:01:35.3]} 17. Qxd5 {[%clk 0:01:21]} 17... Bxd5 {[%clk 0:01:36.7]} 18. Bf4
{[%clk 0:01:22.9]} 18... Rf8 {[%clk 0:01:31.3]} 19. Bxc7 {[%clk 0:01:19.7]}
19... Bxf3 {[%clk 0:01:32.5]} 20. gxf3 {[%clk 0:01:21.6]} 20... Rxf3 {[%clk
0:01:33.6]} 21. Re2 {[%clk 0:01:21.1]} 21... Rc8 {[%clk 0:01:26]} 22. Bg3 {[%clk
0:01:20.8]} 22... Na5 {[%clk 0:01:23.9]} 23. Rg1 {[%clk 0:01:16.6]} 23... Nc4
{[%clk 0:01:22]} 24. Re7 {[%clk 0:01:16.8]} 24... Rf7 {[%clk 0:01:09.2]} 25.
Rxf7 {[%clk 0:01:13.5]} 25... Kxf7 {[%clk 0:01:09.9]} 26. b3 {[%clk 0:01:15.4]}
26... Nd2 {[%clk 0:01:05.9]} 27. Rc1 {[%clk 0:01:13.6]} 27... Ne4 {[%clk
0:01:01.8]} 28. Be1 {[%clk 0:01:13.2]} 28... b5 {[%clk 0:01:00.7]} 29. c4 {[%clk
0:01:13.8]} 29... bxc4 {[%clk 0:00:59.5]} 30. bxc4 {[%clk 0:01:15.7]} 30... g5
{[%clk 0:00:58.9]} 31. c5 {[%clk 0:01:14.6]} 31... Ke6 {[%clk 0:00:58.6]} 32.
Bc3 {[%clk 0:00:42.1]} 32... Kd5 {[%clk 0:00:57.4]} 33. Kg2 {[%clk 0:00:38.9]}
33... h5 {[%clk 0:00:57.3]} 34. Ba1 {[%clk 0:00:37.3]} 34... g4 {[%clk
0:00:56.4]} 35. Rf1 {[%clk 0:00:38.8]} 35... h4 {[%clk 0:00:53.6]} 36. Rf5+
{[%clk 0:00:40.3]} 36... Kc4 {[%clk 0:00:54.8]} 37. Re5 {[%clk 0:00:41]} 37...
Kd3 {[%clk 0:00:50]} 38. Re7 {[%clk 0:00:16.1]} 38... a5 {[%clk 0:00:39.9]} 39.
Ra7 {[%clk 0:00:05.7]} 39... Rf8 {[%clk 0:00:37.1]} 40. Rc7 {[%clk 0:00:05.4]}
40... Rf2+ {[%clk 0:00:37.4]} 41. Kg1 {[%clk 0:00:07.3]} 41... h3 {[%clk
0:00:34.8]} 42. c6 {[%clk 0:00:09.2]} 42... h2+ {[%clk 0:00:35.6]} 43. Kh1
{[%clk 0:00:10.6]} 43... Ng3# {[%clk 0:00:36.9]} 0-1

[Event "*** Titled Tuesday Blitz"]
[Site "Chess.com"]
[Date "2019.06.04"]
[Round "2"]
[White "Mikhail_Golubev"]
[Black "Krupko_Alexey"]
[Result "1-0"]
[WhiteElo "2485"]
[BlackElo "2299"]
[TimeControl "180+2"]
[EndTime "13:23:59 PDT"]
[Termination "Mikhail_Golubev won by resignation"]

1. e4 {[%clk 0:03:01.9]} 1... e6 {[%clk 0:02:59.5]} 2. d4 {[%clk 0:03:01.9]}
2... d5 {[%clk 0:03:00.3]} 3. Nc3 {[%clk 0:03:02.6]} 3... Nf6 {[%clk 0:03:00.5]}
4. Bg5 {[%clk 0:03:01.9]} 4... Be7 {[%clk 0:03:01.2]} 5. e5 {[%clk 0:03:01.5]}
5... Nfd7 {[%clk 0:03:02.7]} 6. h4 {[%clk 0:03:00.7]} 6... c5 {[%clk 0:03:03.4]}
7. Bxe7 {[%clk 0:02:59.5]} 7... Qxe7 {[%clk 0:03:03.9]} 8. Nb5 {[%clk
0:02:58.9]} 8... O-O {[%clk 0:03:04.8]} 9. Nc7 {[%clk 0:02:44.3]} 9... Nc6
{[%clk 0:03:05.2]} 10. Nxa8 {[%clk 0:02:42]} 10... cxd4 {[%clk 0:03:05.7]} 11.
Nf3 {[%clk 0:02:28.8]} 11... Qb4+ {[%clk 0:03:05.9]} 12. Qd2 {[%clk 0:02:29.5]}
12... Qxb2 {[%clk 0:03:06.7]} 13. Rd1 {[%clk 0:02:29.6]} 13... Nc5 {[%clk
0:03:06.4]} 14. Nxd4 {[%clk 0:02:19.3]} 14... Ne4 {[%clk 0:02:48.1]} 15. Qe3
{[%clk 0:02:18]} 15... Nxe5 {[%clk 0:01:13.4]} 16. Qb3 {[%clk 0:02:08.2]} 16...
Qxb3 {[%clk 0:00:59.3]} 17. cxb3 {[%clk 0:02:07.9]} 17... Bd7 {[%clk 0:00:59]}
18. Nc7 {[%clk 0:02:07.3]} 18... a6 {[%clk 0:00:59.3]} 19. Bd3 {[%clk
0:01:29.7]} 19... Nc5 {[%clk 0:00:50.2]} 20. Bb1 {[%clk 0:01:19.7]} 20... Rc8
{[%clk 0:00:50.1]} 21. Nxd5 {[%clk 0:01:19.7]} 21... exd5 {[%clk 0:00:50.7]} 22.
O-O {[%clk 0:01:19.8]} 22... g6 {[%clk 0:00:23.5]} 23. f3 {[%clk 0:01:18.9]}
23... Kg7 {[%clk 0:00:20.6]} 24. Rc1 {[%clk 0:01:17]} 24... a5 {[%clk
0:00:16.3]} 25. Rc3 {[%clk 0:01:16.5]} 25... b6 {[%clk 0:00:17]} 26. Re1 {[%clk
0:01:12.3]} 26... Re8 {[%clk 0:00:17.9]} 27. f4 {[%clk 0:01:08.8]} 27... Ng4
{[%clk 0:00:18.7]} 28. Rxe8 {[%clk 0:01:04]} 28... Bxe8 {[%clk 0:00:20.6]} 29.
a3 {[%clk 0:00:58.3]} 29... Nf6 {[%clk 0:00:20.7]} 30. b4 {[%clk 0:00:57.7]}
30... axb4 {[%clk 0:00:22.5]} 31. axb4 {[%clk 0:00:58.1]} 31... Nce4 {[%clk
0:00:24.4]} 32. Rc8 {[%clk 0:00:53.6]} 32... Bd7 {[%clk 0:00:23.9]} 33. Rb8
{[%clk 0:00:53.4]} 33... Nh5 {[%clk 0:00:23.7]} 34. Rxb6 {[%clk 0:00:46.9]}
34... Nxf4 {[%clk 0:00:24.1]} 35. Bxe4 {[%clk 0:00:44.8]} 35... dxe4 {[%clk
0:00:25.1]} 36. Rd6 {[%clk 0:00:44.6]} 36... Bg4 {[%clk 0:00:24.1]} 37. b5
{[%clk 0:00:43.8]} 37... e3 {[%clk 0:00:25]} 38. b6 {[%clk 0:00:41.3]} 38... e2
{[%clk 0:00:20.8]} 39. Nxe2 {[%clk 0:00:38.9]} 39... Nxe2+ {[%clk 0:00:22.7]}
40. Kf2 {[%clk 0:00:38.8]} 40... Nc3 {[%clk 0:00:23.4]} 41. Rd4 {[%clk
0:00:31.4]} 41... Bf5 {[%clk 0:00:17.5]} 42. b7 {[%clk 0:00:26.7]} 42... Nb5
{[%clk 0:00:16.5]} 43. Rb4 {[%clk 0:00:23.4]} 1-0

[Event "*** Titled Tuesday Blitz"]
[Site "Chess.com"]
[Date "2019.06.04"]
[Round "2"]
[White "TheGandhiOfChess"]
[Black "Gentlejimmy7"]
[Result "0-1"]
[WhiteElo "2410"]
[BlackElo "2504"]
[TimeControl "180+2"]
[EndTime "13:24:16 PDT"]
[Termination "Gentlejimmy7 won by resignation"]

1. e4 {[%clk 0:03:01.9]} 1... c5 {[%clk 0:02:56.2]} 2. Nf3 {[%clk 0:03:02.6]}
2... e6 {[%clk 0:02:50.9]} 3. d4 {[%clk 0:03:03.1]} 3... cxd4 {[%clk 0:02:51.2]}
4. Nxd4 {[%clk 0:03:05]} 4... Nf6 {[%clk 0:02:51.7]} 5. Nc3 {[%clk 0:03:05.9]}
5... Nc6 {[%clk 0:02:50.5]} 6. Be3 {[%clk 0:03:07]} 6... Bb4 {[%clk 0:02:48.3]}
7. Nxc6 {[%clk 0:03:01.8]} 7... bxc6 {[%clk 0:02:45.4]} 8. Qd3 {[%clk
0:02:54.1]} 8... d5 {[%clk 0:02:43.5]} 9. exd5 {[%clk 0:02:52.7]} 9... Nxd5
{[%clk 0:02:41.3]} 10. Bd2 {[%clk 0:02:51.9]} 10... O-O {[%clk 0:02:39]} 11. Be2
{[%clk 0:02:42.7]} 11... a5 {[%clk 0:02:39.6]} 12. Ne4 {[%clk 0:02:24.9]} 12...
Ba6 {[%clk 0:02:37.9]} 13. c4 {[%clk 0:02:25.2]} 13... Nf4 {[%clk 0:02:31.3]}
14. Qxd8 {[%clk 0:02:19.1]} 14... Rfxd8 {[%clk 0:02:28.3]} 15. Bxb4 {[%clk
0:02:06.6]} 15... axb4 {[%clk 0:02:27.8]} 16. b3 {[%clk 0:02:08.1]} 16... Nxg2+
{[%clk 0:01:44.6]} 17. Kf1 {[%clk 0:02:08.6]} 17... Nf4 {[%clk 0:01:45.3]} 18.
Bf3 {[%clk 0:02:09.8]} 18... Rd3 {[%clk 0:01:35.9]} 19. Be2 {[%clk 0:02:08.2]}
19... Rd4 {[%clk 0:01:35.4]} 20. Nc5 {[%clk 0:02:07.7]} 20... Bc8 {[%clk
0:01:31.7]} 21. Bf3 {[%clk 0:02:03.4]} 21... Ra5 {[%clk 0:01:31.8]} 22. Na4
{[%clk 0:01:59]} 22... e5 {[%clk 0:01:26.6]} 23. Bxc6 {[%clk 0:01:53.6]} 23...
Bh3+ {[%clk 0:01:12.3]} 24. Ke1 {[%clk 0:01:54.9]} 24... e4 {[%clk 0:01:13.7]}
25. Rg1 {[%clk 0:01:25.8]} 25... Ng2+ {[%clk 0:00:46.6]} 26. Ke2 {[%clk
0:01:25.5]} 26... Rf5 {[%clk 0:00:42.8]} 27. f3 {[%clk 0:00:35.3]} 27... Rxf3
{[%clk 0:00:31.1]} 28. Rad1 {[%clk 0:00:25]} 28... Nf4+ {[%clk 0:00:23.9]} 29.
Ke1 {[%clk 0:00:26.5]} 29... Nd3+ {[%clk 0:00:21.1]} 30. Ke2 {[%clk 0:00:27.5]}
30... f5 {[%clk 0:00:19.1]} 31. Nc5 {[%clk 0:00:23.5]} 31... Nf4+ {[%clk
0:00:17.1]} 32. Ke1 {[%clk 0:00:24.4]} 32... Re3+ {[%clk 0:00:16.4]} 33. Kf2
{[%clk 0:00:25.6]} 33... Re2+ {[%clk 0:00:17.3]} 34. Kg3 {[%clk 0:00:27]} 34...
Rxd1 {[%clk 0:00:15.5]} 35. Rxd1 {[%clk 0:00:27.5]} 35... g5 {[%clk 0:00:14.7]}
36. Rd8+ {[%clk 0:00:25]} 36... Kf7 {[%clk 0:00:13.9]} 37. Rd7+ {[%clk
0:00:21.4]} 37... Kf6 {[%clk 0:00:13.2]} 38. Rd6+ {[%clk 0:00:22.7]} 38... Ke5
{[%clk 0:00:11.9]} 39. Rd5+ {[%clk 0:00:19.7]} 39... Nxd5 {[%clk 0:00:12.7]} 40.
Bxd5 {[%clk 0:00:21]} 40... Bg4 {[%clk 0:00:11.9]} 41. Nd7+ {[%clk 0:00:22.6]}
41... Kd4 {[%clk 0:00:12.5]} 42. Nf6 {[%clk 0:00:24.5]} 42... Rxa2 {[%clk
0:00:12.4]} 43. Nxg4 {[%clk 0:00:25.7]} 43... fxg4 {[%clk 0:00:14]} 44. Kxg4
{[%clk 0:00:27.6]} 44... e3 {[%clk 0:00:15.6]} 45. Kf3 {[%clk 0:00:28.5]} 45...
Rf2+ {[%clk 0:00:16.5]} 46. Kg3 {[%clk 0:00:29.4]} 46... Rf8 {[%clk 0:00:17]}
47. Bf3 {[%clk 0:00:29.1]} 47... Kd3 {[%clk 0:00:17.9]} 48. c5 {[%clk
0:00:30.3]} 48... e2 {[%clk 0:00:19.1]} 0-1

[Event "*** Titled Tuesday Blitz"]
[Site "Chess.com"]
[Date "2019.06.04"]
[Round "2"]
[White "Antipov_Mikhail_Al"]
[Black "MFBerna"]
[Result "1-0"]
[WhiteElo "2874"]
[BlackElo "2370"]
[TimeControl "180+2"]
[EndTime "13:24:19 PDT"]
[Termination "Antipov_Mikhail_Al won by resignation"]

1. e4 {[%clk 0:03:01.9]} 1... c6 {[%clk 0:03:00.2]} 2. d4 {[%clk 0:03:02.8]}
2... d5 {[%clk 0:03:02.1]} 3. exd5 {[%clk 0:03:04.7]} 3... cxd5 {[%clk
0:03:03.3]} 4. Bd3 {[%clk 0:03:05.7]} 4... Nf6 {[%clk 0:03:04.4]} 5. c3 {[%clk
0:03:06.9]} 5... Nc6 {[%clk 0:03:05.4]} 6. Ne2 {[%clk 0:03:07.6]} 6... e5 {[%clk
0:03:02.8]} 7. dxe5 {[%clk 0:03:03.7]} 7... Nxe5 {[%clk 0:03:04.7]} 8. Bb5+
{[%clk 0:03:05.4]} 8... Bd7 {[%clk 0:03:04.2]} 9. Bxd7+ {[%clk 0:03:02.9]} 9...
Qxd7 {[%clk 0:03:06.1]} 10. O-O {[%clk 0:03:03.1]} 10... Bd6 {[%clk 0:03:06.6]}
11. Bf4 {[%clk 0:03:00.3]} 11... O-O {[%clk 0:03:07.2]} 12. Nd4 {[%clk
0:03:00.2]} 12... Rfe8 {[%clk 0:03:02.5]} 13. Nd2 {[%clk 0:02:57.7]} 13... Neg4
{[%clk 0:02:38.3]} 14. Bxd6 {[%clk 0:02:55.9]} 14... Qxd6 {[%clk 0:02:40.2]} 15.
N2f3 {[%clk 0:02:57.6]} 15... Ne4 {[%clk 0:02:34.3]} 16. Qc2 {[%clk 0:02:47.8]}
16... g6 {[%clk 0:02:29.4]} 17. Rad1 {[%clk 0:02:48]} 17... Rad8 {[%clk
0:02:28.6]} 18. Ne2 {[%clk 0:02:46.4]} 18... Qa6 {[%clk 0:02:00.1]} 19. a3
{[%clk 0:02:24.1]} 19... h5 {[%clk 0:01:17.2]} 20. Rd4 {[%clk 0:02:09.7]} 20...
Qf6 {[%clk 0:01:03.4]} 21. Ng3 {[%clk 0:01:39.7]} 21... Nxg3 {[%clk 0:00:34.3]}
22. hxg3 {[%clk 0:01:41.6]} 22... Ne5 {[%clk 0:00:27.5]} 23. Nxe5 {[%clk
0:01:17.2]} 23... Rxe5 {[%clk 0:00:29.4]} 24. Qb3 {[%clk 0:01:08.6]} 24... b6
{[%clk 0:00:27.2]} 25. Qb5 {[%clk 0:01:04.5]} 25... Rf5 {[%clk 0:00:18.8]} 26.
a4 {[%clk 0:01:00.6]} 26... Rd6 {[%clk 0:00:17.5]} 27. a5 {[%clk 0:00:58.9]}
27... Re6 {[%clk 0:00:14.3]} 28. axb6 {[%clk 0:00:38.9]} 28... axb6 {[%clk
0:00:15]} 29. f3 {[%clk 0:00:27.1]} 29... Kg7 {[%clk 0:00:13.1]} 30. Rxd5 {[%clk
0:00:21.2]} 30... Rxd5 {[%clk 0:00:15]} 31. Qxd5 {[%clk 0:00:22.7]} 31... Re2
{[%clk 0:00:13.4]} 32. Rf2 {[%clk 0:00:23.8]} 32... Re1+ {[%clk 0:00:14]} 33.
Kh2 {[%clk 0:00:25.2]} 33... h4 {[%clk 0:00:14.3]} 34. Rd2 {[%clk 0:00:21.5]}
34... hxg3+ {[%clk 0:00:16.2]} 35. Kxg3 {[%clk 0:00:23.3]} 35... Re5 {[%clk
0:00:14.4]} 36. Qd4 {[%clk 0:00:24.3]} 36... Rg5+ {[%clk 0:00:09.9]} 37. Kf2
{[%clk 0:00:24.8]} 37... Re5 {[%clk 0:00:11.1]} 38. Re2 {[%clk 0:00:21.6]} 38...
Rb5 {[%clk 0:00:08.9]} 39. Qxf6+ {[%clk 0:00:21.6]} 39... Kxf6 {[%clk
0:00:10.8]} 40. Ke3 {[%clk 0:00:23.5]} 40... g5 {[%clk 0:00:09.2]} 41. Kd4
{[%clk 0:00:20.8]} 41... g4 {[%clk 0:00:10]} 42. fxg4 {[%clk 0:00:21.3]} 42...
Kg5 {[%clk 0:00:11.3]} 43. Re5+ {[%clk 0:00:19.7]} 43... Rxe5 {[%clk 0:00:11.7]}
44. Kxe5 {[%clk 0:00:21.6]} 44... f6+ {[%clk 0:00:10.4]} 45. Ke6 {[%clk
0:00:21.9]} 45... Kg6 {[%clk 0:00:11.6]} 46. c4 {[%clk 0:00:23.1]} 1-0

[Event "*** Titled Tuesday Blitz"]
[Site "Chess.com"]
[Date "2019.06.04"]
[Round "2"]
[White "Yurovskykh_Oleksandr"]
[Black "soolking67"]
[Result "0-1"]
[WhiteElo "2523"]
[BlackElo "2539"]
[TimeControl "180+2"]
[EndTime "13:24:22 PDT"]
[Termination "soolking67 won by resignation"]

1. d4 {[%clk 0:03:00.3]} 1... Nf6 {[%clk 0:03:00.7]} 2. Nf3 {[%clk 0:03:00.7]}
2... e6 {[%clk 0:03:01.8]} 3. Bf4 {[%clk 0:03:01.2]} 3... c5 {[%clk 0:03:00.7]}
4. e3 {[%clk 0:03:02.2]} 4... Nc6 {[%clk 0:03:01.8]} 5. c3 {[%clk 0:03:02.7]}
5... d5 {[%clk 0:03:02.3]} 6. Nbd2 {[%clk 0:03:03.5]} 6... Bd6 {[%clk
0:03:00.9]} 7. Bg3 {[%clk 0:03:04.4]} 7... O-O {[%clk 0:03:01.7]} 8. Bb5 {[%clk
0:03:03.1]} 8... cxd4 {[%clk 0:02:48.5]} 9. exd4 {[%clk 0:03:03.4]} 9... Ne4
{[%clk 0:02:41.4]} 10. Bxd6 {[%clk 0:02:59.5]} 10... Nxd6 {[%clk 0:02:39.6]} 11.
Bd3 {[%clk 0:03:00.3]} 11... f6 {[%clk 0:02:30.1]} 12. O-O {[%clk 0:02:59.8]}
12... e5 {[%clk 0:02:28.2]} 13. Be2 {[%clk 0:02:43.2]} 13... e4 {[%clk
0:02:20.9]} 14. Ne1 {[%clk 0:02:40.4]} 14... f5 {[%clk 0:02:20.4]} 15. f4 {[%clk
0:02:37.4]} 15... Be6 {[%clk 0:02:05.7]} 16. Nc2 {[%clk 0:02:37.5]} 16... a5
{[%clk 0:02:03.5]} 17. Ne3 {[%clk 0:02:37.8]} 17... Ne7 {[%clk 0:02:01.1]} 18.
a4 {[%clk 0:02:34.1]} 18... g5 {[%clk 0:01:47.3]} 19. g3 {[%clk 0:02:33]} 19...
h6 {[%clk 0:01:41.8]} 20. Qb3 {[%clk 0:02:26.7]} 20... Kh7 {[%clk 0:01:36.5]}
21. Rf2 {[%clk 0:02:24.5]} 21... gxf4 {[%clk 0:01:33.7]} 22. gxf4 {[%clk
0:02:07.4]} 22... Rg8+ {[%clk 0:01:28.6]} 23. Kh1 {[%clk 0:02:08]} 23... Ng6
{[%clk 0:01:28]} 24. Bh5 {[%clk 0:01:58.7]} 24... Nxf4 {[%clk 0:01:16.2]} 25.
Rxf4 {[%clk 0:01:58.8]} 25... Qg5 {[%clk 0:01:16.1]} 26. Raf1 {[%clk 0:01:46.1]}
26... Qxh5 {[%clk 0:01:15.2]} 27. Qd1 {[%clk 0:01:47.7]} 27... Qg6 {[%clk
0:01:04.4]} 28. Rg1 {[%clk 0:01:46.2]} 28... Qf6 {[%clk 0:01:00.1]} 29. Qf1
{[%clk 0:01:25.1]} 29... Rg5 {[%clk 0:00:55.2]} 30. h4 {[%clk 0:01:20.9]} 30...
Rxg1+ {[%clk 0:00:54.3]} 31. Qxg1 {[%clk 0:01:22.4]} 31... Rg8 {[%clk
0:00:49.4]} 32. Qh2 {[%clk 0:01:21.4]} 32... Nc8 {[%clk 0:00:44.9]} 33. Ndf1
{[%clk 0:01:17.6]} 33... Ne7 {[%clk 0:00:43.2]} 34. Rf2 {[%clk 0:01:19]} 34...
Bf7 {[%clk 0:00:37.4]} 35. Ng2 {[%clk 0:01:18.6]} 35... Bh5 {[%clk 0:00:35.1]}
36. Qf4 {[%clk 0:00:59]} 36... Ng6 {[%clk 0:00:34.7]} 37. Qh2 {[%clk 0:00:49.1]}
37... Bf3 {[%clk 0:00:33.7]} 38. Ne3 {[%clk 0:00:47.5]} 38... Nxh4 {[%clk
0:00:30.9]} 39. Nxd5 {[%clk 0:00:39.5]} 39... Qg5 {[%clk 0:00:27.3]} 40. Qe5
{[%clk 0:00:22.6]} 40... Bxg2+ {[%clk 0:00:20.9]} 41. Kh2 {[%clk 0:00:23.3]}
41... Nf3+ {[%clk 0:00:16.2]} 42. Rxf3 {[%clk 0:00:23.9]} 42... Qh5+ {[%clk
0:00:17.3]} 43. Kg1 {[%clk 0:00:21.8]} 43... Bxf3+ {[%clk 0:00:17.3]} 44. Kf2
{[%clk 0:00:23.2]} 44... Rg2+ {[%clk 0:00:15.9]} 0-1